fUST/lending_fUST_20240524
["ID","MTS","AMOUNT","RATE_DAILY","PERIOD"]
[327841431,1716545232754,-500.0,0.00024657,2]
[327841432,1716545232776,-500.0,0.00024657,2]
[327841433,1716545232796,-500.0,0.00024657,2]
[327841434,1716545232820,-500.0,0.00024657,2]
[327841435,1716545232840,-500.0,0.00024657,2]
[327841436,1716545232861,-500.0,0.00024657,2]
[327841437,1716545232880,-618.77,0.00024657,2]
[327841438,1716545232900,-500.0,0.00024657,2]
[327841439,1716545232920,-500.0,0.00024657,2]
[327841440,1716545232942,-500.0,0.00024657,2]
[327841441,1716545232962,-500.0,0.00024657,2]
[327841442,1716545232982,-500.0,0.00024657,2]
[327841443,1716545233003,-1798.23,0.00024657,2]
[327841444,1716545233022,-500.0,0.00024657,2]
[327841445,1716545233043,-500.0,0.00024657,2]
[327841446,1716545233066,-500.0,0.00024657,2]
[327841447,1716545233087,-423.30875756,0.00024657,2]
[327841452,1716545250110,-76.69124244,0.00024657,2]
[327841453,1716545250132,-500.0,0.00024657,2]
[327841454,1716545250154,-500.0,0.00024657,2]
[327841455,1716545250177,-467.24193259,0.00024657,2]
[327841457,1716545252091,-755.99796585,0.00024657,11]
[327841463,1716545412914,6288.10746399,0.00020913,2]
[327841464,1716545416062,660.40973469,0.00020913,2]
[327841465,1716545418264,155.42417009,0.00020913,2]
[327841466,1716545424202,154.9690062,0.00020913,2]
[327841511,1716545432225,-156.00159185,0.00022557,2]
[327841513,1716545432234,-163.492418,0.00023018,2]
[327841514,1716545432244,-265.468633,0.00024397,2]
[327841516,1716545432253,-381.97269318,0.00024656,2]
[327841517,1716545432262,-371.84484114,0.00024656,2]
[327841518,1716545432271,-2104.6857095,0.00024657,11]
[327841519,1716545432281,-3938.18311333,0.00024657,11]
[327841645,1716545438741,-5027.02620695,0.00024657,11]
[327841647,1716545438750,-32.75806741,0.00024657,2]
[327841650,1716545438760,-500.0,0.00024657,2]
[327841652,1716545438769,-500.0,0.00024657,2]
[327841654,1716545438779,-500.0,0.00024657,2]
[327841656,1716545438787,-38.71636592,0.00024657,2]
[327841796,1716545443633,-461.28363408,0.00024657,2]
[327841797,1716545443643,-393.71636592,0.00024657,2]
[327841799,1716545443692,-106.28363408,0.00024657,2]
[327841800,1716545443702,-500.0,0.00024657,2]
[327841802,1716545443713,-500.0,0.00024657,2]
[327841804,1716545443723,-304.13240548,0.00024657,2]
[327841812,1716545447516,-500.0,0.00024656,2]
[327841813,1716545447526,-134.04218422,0.00024657,2]
[327841814,1716545447535,-500.0,0.00024657,2]
[327841815,1716545447544,-500.0,0.00024657,2]
[327841816,1716545447552,-500.0,0.00024657,2]
[327841817,1716545447562,-500.0,0.00024657,2]
[327841818,1716545447571,-500.0,0.00024657,2]
[327841819,1716545447579,-528.84928713,0.00024657,2]
[327841820,1716545447588,-78.26502087,0.00024657,2]
[327841821,1716545462833,26394.38982803,0.00020913,2]
[327841822,1716545462855,163.33333268,0.00020913,2]
[327841823,1716545462877,33669.85776198,0.00020913,2]
[327841824,1716545472018,160.80275544,0.00020913,2]
[327841934,1716546304436,253.0,0.00026565,35]
[327841935,1716546304953,253.0,0.00026555,35]
[327841936,1716546306405,253.0,0.00026545,35]
[327841937,1716546442164,-682.29541795,0.00020913,2]
[327841938,1716546450152,-160.40973469,0.00022557,2]
[327841992,1716546634278,-140.76317633,0.00022557,2]
[327841999,1716546634562,-14.51230314,0.00022557,2]
[327842000,1716546634572,-24900.0,0.00023514,2]
[327842001,1716546634583,-151.0,0.00024321,5]
[327842002,1716546634592,-284.369619,0.00024384,2]
[327842003,1716546634602,-158.951296,0.00024384,2]
[327842004,1716546634611,-269.41182324,0.00024456,2]
[327842005,1716546634620,-475.99353564,0.00024465,2]
[327842006,1716546634630,-3961.57731993,0.00024542,2]
[327842007,1716546634639,-185.75991995,0.00024556,2]
[327842008,1716546634649,-185.75991995,0.00024556,2]
[327842009,1716546634658,-2000.0,0.00024557,2]
[327842010,1716546634668,-185.75991995,0.00024557,2]
[327842011,1716546634677,-7404.45101295,0.000246,2]
[327842012,1716546634688,-265.4686331,0.00024616,2]
[327842013,1716546634697,-500.0,0.00024651,2]
[327842014,1716546634708,-500.0,0.00024651,2]
[327842015,1716546634717,-500.0,0.00024651,2]
[327842016,1716546634726,-500.0,0.00024651,2]
[327842017,1716546634736,-500.0,0.00024651,2]
[327842018,1716546634745,-493.33750637,0.00024651,2]
[327842019,1716546634759,-500.0,0.00024651,2]
[327842020,1716546634769,-500.0,0.00024651,2]
[327842021,1716546634778,-500.0,0.00024651,2]
[327842022,1716546634788,-500.0,0.00024651,2]
[327842023,1716546634798,-500.0,0.00024651,2]
[327842024,1716546634808,-500.0,0.00024651,2]
[327842025,1716546634818,-377.41995448,0.00024651,2]
[327842026,1716546634829,-500.0,0.00024651,2]
[327842027,1716546634838,-500.0,0.00024651,2]
[327842028,1716546634848,-296.58570826,0.00024651,2]
[327842029,1716546634861,-203.41429174,0.00024651,2]
[327842030,1716546634871,-500.0,0.00024651,2]
[327842031,1716546634880,-202.00419695,0.00024651,2]
[327842048,1716546638410,-297.99580305,0.00024651,2]
[327842049,1716546638420,-44.42232597,0.00024651,2]
[327842179,1716546642680,-455.57767403,0.00024651,2]
[327842181,1716546642690,-280.06066764,0.00024651,2]
[327842183,1716546642701,-500.0,0.00024651,2]
[327842185,1716546642711,-500.0,0.00024651,2]
[327842186,1716546642720,-359.91968367,0.00024651,2]
[327842187,1716546642729,-500.0,0.00024651,2]
[327842188,1716546642739,-500.0,0.00024651,2]
[327842189,1716546642748,-500.0,0.00024651,2]
[327842190,1716546642760,-500.0,0.00024651,2]
[327842191,1716546642769,-500.0,0.00024651,2]
[327842192,1716546642778,-500.0,0.00024651,2]
[327842193,1716546642787,-500.0,0.00024651,2]
[327842194,1716546642798,-500.0,0.00024651,2]
[327842195,1716546642807,-500.0,0.00024651,2]
[327842199,1716546642950,-500.0,0.00024651,2]
[327842200,1716546642961,-500.0,0.00024651,2]
[327842201,1716546642970,-177.44818757,0.00024651,2]
[327842202,1716546642978,-500.0,0.00024651,2]
[327842203,1716546642989,-500.0,0.00024651,2]
[327842204,1716546642997,-500.0,0.00024651,2]
[327842205,1716546643006,-500.0,0.00024651,2]
[327842206,1716546643016,-500.0,0.00024651,2]
[327842207,1716546643025,-500.0,0.00024651,2]
[327842208,1716546643034,-500.0,0.00024651,2]
[327842209,1716546643043,-500.0,0.00024651,2]
[327842210,1716546643052,-500.0,0.00024651,2]
[327842211,1716546643061,-500.0,0.00024651,2]
[327842212,1716546643070,-500.0,0.00024651,2]
[327842213,1716546643078,-4482.60466014,0.00024656,11]
[327842214,1716546643087,-3000.0,0.00024656,2]
[327842215,1716546643096,-500.0,0.00024656,3]
[327842216,1716546643105,-500.0,0.00024656,3]
[327842219,1716546643115,-500.0,0.00024656,3]
[327842220,1716546643125,-500.0,0.00024656,3]
[327842221,1716546643135,-500.0,0.00024656,3]
[327842224,1716546643144,-500.0,0.00024656,3]
[327842227,1716546643154,-500.0,0.00024656,3]
[327842230,1716546643163,-605.00084899,0.00024656,3]
[327842232,1716546643173,-1052.34285475,0.00024657,11]
[327842234,1716546643182,-500.0,0.00024657,2]
[327842235,1716546643191,-500.0,0.00024657,2]
[327842237,1716546643201,-500.0,0.00024657,2]
[327842239,1716546643212,-290.28,0.00024657,2]
[327842241,1716546643221,-500.0,0.00024657,2]
[327842243,1716546643231,-500.0,0.00024657,2]
[327842244,1716546643240,-500.0,0.00024657,2]
[327842245,1716546643250,-164.88702636,0.00024657,2]
[327842246,1716546643259,-500.0,0.00024657,2]
[327842247,1716546643267,-500.0,0.00024657,2]
[327842248,1716546643276,-500.0,0.00024657,2]
[327842249,1716546643285,-500.0,0.00024657,2]
[327842250,1716546643294,-500.0,0.00024657,2]
[327842251,1716546643303,-500.0,0.00024657,2]
[327842252,1716546643312,-500.0,0.00024657,2]
[327842253,1716546643321,-500.0,0.00024657,2]
[327842254,1716546643330,-500.0,0.00024657,2]
[327842255,1716546643339,-500.0,0.00024657,2]
[327842256,1716546643349,-500.0,0.00024657,2]
[327842257,1716546643358,-500.0,0.00024657,2]
[327842258,1716546643367,-500.0,0.00024657,2]
[327842259,1716546643376,-500.0,0.00024657,2]
[327842260,1716546643386,-500.0,0.00024657,2]
[327842261,1716546643395,-500.0,0.00024657,2]
[327842262,1716546643404,-500.0,0.00024657,2]
[327842263,1716546643413,-500.0,0.00024657,2]
[327842264,1716546643422,-500.0,0.00024657,2]
[327842265,1716546643431,-500.0,0.00024657,2]
[327842266,1716546643440,-500.0,0.00024657,2]
[327842267,1716546643449,-1315.9,0.00024657,2]
[327842268,1716546643460,-500.0,0.00024657,2]
[327842269,1716546643469,-609.01,0.00024657,2]
[327842270,1716546643479,-500.0,0.00024657,2]
[327842271,1716546643488,-500.0,0.00024657,2]
[327842272,1716546643498,-500.0,0.00024657,2]
[327842273,1716546643507,-500.0,0.00024657,2]
[327842274,1716546643517,-500.0,0.00024657,2]
[327842275,1716546643526,-500.0,0.00024657,2]
[327842276,1716546643535,-193.76293262,0.00024657,2]
[327842277,1716546643544,-500.0,0.00024657,2]
[327842278,1716546643554,-500.0,0.00024657,2]
[327842279,1716546643563,-500.0,0.00024657,2]
[327842280,1716546643573,-500.0,0.00024657,2]
[327842281,1716546643582,-500.0,0.00024657,2]
[327842282,1716546643591,-1000.0,0.00024657,2]
[327842283,1716546643600,-849.83,0.00024657,2]
[327842284,1716546643610,-500.0,0.00024657,2]
[327842285,1716546643619,-500.0,0.00024657,2]
[327842286,1716546643628,-500.0,0.00024657,2]
[327842287,1716546643637,-500.0,0.00024657,2]
[327842288,1716546643646,-500.0,0.00024657,2]
[327842289,1716546643656,-500.0,0.00024657,2]
[327842290,1716546643666,-552.97,0.00024657,2]
[327842291,1716546643675,-500.0,0.00024657,2]
[327842292,1716546643685,-500.0,0.00024657,2]
[327842293,1716546643694,-500.0,0.00024657,2]
[327842294,1716546643705,-500.0,0.00024657,2]
[327842295,1716546643716,-626.62,0.00024657,2]
[327842296,1716546643727,-500.0,0.00024657,2]
[327842297,1716546643736,-500.0,0.00024657,2]
[327842298,1716546643746,-500.0,0.00024657,2]
[327842299,1716546643756,-500.0,0.00024657,2]
[327842300,1716546643770,-1723.31,0.00024657,2]
[327842301,1716546643780,-966.65,0.00024657,2]
[327842302,1716546643789,-500.0,0.00024657,2]
[327842303,1716546643799,-500.0,0.00024657,2]
[327842304,1716546643810,-880.45,0.00024657,2]
[327842305,1716546643819,-181.383105,0.00024657,2]
[327842306,1716546643828,-181.383105,0.00024657,2]
[327842307,1716546643840,-181.383105,0.00024657,2]
[327842308,1716546643849,-181.383105,0.00024657,2]
[327842309,1716546643858,-181.383105,0.00024657,2]
[327842310,1716546643867,-181.383105,0.00024657,2]
[327842312,1716546643878,-181.383105,0.00024657,2]
[327842314,1716546643887,-181.383105,0.00024657,2]
[327842315,1716546643897,-500.0,0.00024657,2]
[327842318,1716546643906,-181.383105,0.00024657,2]
[327842321,1716546643916,-181.383105,0.00024657,2]
[327842324,1716546643926,-181.383105,0.00024657,2]
[327842326,1716546643936,-181.383105,0.00024657,2]
[327842328,1716546643946,-181.383105,0.00024657,2]
[327842329,1716546643955,-181.383105,0.00024657,2]
[327842330,1716546643967,-500.0,0.00024657,2]
[327842331,1716546643977,-500.0,0.00024657,2]
[327842332,1716546643987,-500.0,0.00024657,2]
[327842333,1716546643997,-500.0,0.00024657,2]
[327842334,1716546644006,-500.0,0.00024657,2]
[327842335,1716546644016,-500.0,0.00024657,2]
[327842336,1716546644026,-1944.45,0.00024657,2]
[327842337,1716546644035,-500.0,0.00024657,2]
[327842338,1716546644045,-500.0,0.00024657,2]
[327842339,1716546644055,-500.0,0.00024657,2]
[327842340,1716546644065,-500.0,0.00024657,2]
[327842341,1716546644074,-500.0,0.00024657,2]
[327842342,1716546644084,-227.10264282,0.00024657,2]
[327842343,1716546644094,-1122.21,0.00024657,2]
[327842344,1716546644104,-500.0,0.00024657,2]
[327842345,1716546644115,-500.0,0.00024657,2]
[327842346,1716546644124,-500.0,0.00024657,2]
[327842347,1716546644134,-500.0,0.00024657,2]
[327842348,1716546644143,-500.0,0.00024657,2]
[327842349,1716546644152,-500.0,0.00024657,2]
[327842350,1716546644161,-500.0,0.00024657,2]
[327842351,1716546644171,-500.0,0.00024657,2]
[327842352,1716546644181,-500.0,0.00024657,2]
[327842353,1716546644190,-500.0,0.00024657,2]
[327842354,1716546644200,-957.21,0.00024657,2]
[327842355,1716546644209,-1245.88,0.00024657,2]
[327842356,1716546644219,-500.0,0.00024657,2]
[327842357,1716546644228,-500.0,0.00024657,2]
[327842358,1716546644239,-500.0,0.00024657,2]
[327842359,1716546644248,-521.50746465,0.00024657,2]
[327842360,1716546644259,-500.0,0.00024657,2]
[327842361,1716546644269,-603.44813784,0.00024657,2]
[327842362,1716546644278,-500.0,0.00024657,2]
[327842363,1716546644288,-540.12,0.00024657,2]
[327842364,1716546644297,-500.0,0.00024657,2]
[327842365,1716546644306,-500.0,0.00024657,2]
[327842366,1716546644316,-500.0,0.00024657,2]
[327842367,1716546644326,-761.11,0.00024657,2]
[327842368,1716546644336,-500.0,0.00024657,2]
[327842369,1716546644346,-500.0,0.00024657,2]
[327842370,1716546644356,-500.0,0.00024657,2]
[327842371,1716546644366,-500.0,0.00024657,2]
[327842372,1716546644375,-151.0,0.00024657,2]
[327842373,1716546644386,-156.424417,0.00024657,2]
[327842374,1716546644395,-500.0,0.00024657,2]
[327842375,1716546644405,-151.674758,0.00024657,2]
[327842376,1716546644414,-500.0,0.00024657,2]
[327842377,1716546644424,-546.64,0.00024657,2]
[327842378,1716546644433,-1823.47,0.00024657,2]
[327842379,1716546644443,-500.0,0.00024657,2]
[327842380,1716546644452,-500.0,0.00024657,2]
[327842381,1716546644464,-500.0,0.00024657,2]
[327842382,1716546644473,-500.0,0.00024657,2]
[327842383,1716546644485,-500.0,0.00024657,2]
[327842384,1716546644495,-808.66,0.00024657,2]
[327842385,1716546644504,-500.0,0.00024657,2]
[327842386,1716546644514,-151.0,0.00024657,2]
[327842387,1716546644523,-151.0,0.00024657,2]
[327842388,1716546644533,-620.37,0.00024657,2]
[327842389,1716546644543,-592.98,0.00024657,2]
[327842390,1716546644553,-2280.95,0.00024657,2]
[327842391,1716546644562,-1506.65,0.00024657,2]
[327842392,1716546644571,-500.0,0.00024657,2]
[327842393,1716546644581,-500.0,0.00024657,2]
[327842394,1716546644590,-500.0,0.00024657,2]
[327842395,1716546644600,-500.0,0.00024657,2]
[327842396,1716546644609,-770.23,0.00024657,2]
[327842397,1716546644619,-500.0,0.00024657,2]
[327842398,1716546644630,-500.0,0.00024657,2]
[327842399,1716546644640,-5779.97,0.00024657,2]
[327842400,1716546644650,-151.0,0.00024657,2]
[327842401,1716546644660,-151.0,0.00024657,2]
[327842402,1716546644670,-128.81665811,0.00024657,2]
[327842403,1716546644908,-22.18334189,0.00024657,2]
[327842404,1716546644918,-210.045575,0.00024657,2]
[327842405,1716546644929,-151.0,0.00024657,2]
[327842406,1716546644939,-152.102547,0.00024657,2]
[327842407,1716546644949,-536.61,0.00024657,2]
[327842408,1716546644960,-152.226573,0.00024657,2]
[327842409,1716546644970,-500.0,0.00024657,2]
[327842410,1716546644980,-500.0,0.00024657,2]
[327842411,1716546644990,-153.300203,0.00024657,2]
[327842412,1716546645000,-500.0,0.00024657,2]
[327842413,1716546645010,-500.0,0.00024657,2]
[327842414,1716546645020,-500.0,0.00024657,2]
[327842415,1716546645030,-2150.35,0.00024657,2]
[327842416,1716546645040,-500.0,0.00024657,2]
[327842417,1716546645050,-500.0,0.00024657,2]
[327842418,1716546645060,-500.0,0.00024657,2]
[327842419,1716546645071,-548.83,0.00024657,2]
[327842420,1716546645081,-1064.92,0.00024657,2]
[327842421,1716546645091,-1754.8,0.00024657,2]
[327842422,1716546645100,-500.0,0.00024657,2]
[327842423,1716546645110,-2052.87,0.00024657,2]
[327842424,1716546645120,-779.46,0.00024657,2]
[327842425,1716546645130,-2002.75,0.00024657,2]
[327842426,1716546645140,-515.3,0.00024657,2]
[327842427,1716546645150,-515.3,0.00024657,3]
[327842428,1716546645160,-515.3,0.00024657,4]
[327842429,1716546645170,-515.3,0.00024657,5]
[327842430,1716546645180,-500.0,0.00024657,2]
[327842431,1716546645190,-200.36514006,0.00024657,6]
[327842433,1716546646369,-314.93485994,0.00024657,6]
[327842435,1716546646379,-500.0,0.00024657,2]
[327842437,1716546646388,-515.3,0.00024657,7]
[327842438,1716546646397,-515.3,0.00024657,8]
[327842440,1716546646406,-500.0,0.00024657,2]
[327842441,1716546646416,-515.3,0.00024657,9]
[327842442,1716546646424,-515.3,0.00024657,10]
[327842443,1716546646434,-500.0,0.00024657,2]
[327842444,1716546646443,-501.94090281,0.00024657,2]
[327842445,1716546646452,-500.0,0.00024657,2]
[327842446,1716546646462,-1705.62,0.00024657,2]
[327842447,1716546646471,-1163.06,0.00024657,2]
[327842448,1716546646480,-500.0,0.00024657,2]
[327842449,1716546646489,-927.65208806,0.00024657,2]
[327842450,1716546657977,163.33333268,0.00020913,2]
[327842451,1716546658000,2652.81483135,0.00020913,2]
[327842452,1716546660161,9563.3328996,0.00020913,2]
[327842454,1716546663427,14967.27002875,0.00020913,2]
[327842456,1716546680164,1046.4253814,0.00020913,2]
[327842457,1716546680956,3517.04953359,0.00020913,2]
[327842458,1716546680980,31612.95329011,0.00020913,2]
[327842459,1716546681001,17024.95326212,0.00020913,2]
[327842460,1716546681396,3025.24016094,0.00020913,2]
[327842461,1716546681416,13175.25625129,0.00020913,2]
[327842462,1716546681822,365.089081,0.00020913,2]
[327842463,1716546684134,5043.86586955,0.00020913,2]
[327842464,1716546687365,235.02686068,0.00020913,2]
[327842465,1716546687534,3374.24693945,0.00020913,2]
[327842466,1716546688144,281.67342529,0.00020913,2]
[327842467,1716546689928,11112.87338852,0.00020913,2]
[327842468,1716546689951,7676.87857063,0.00020913,2]
[327842469,1716546692004,18008.81838507,0.00020913,2]
[327842470,1716546692026,1304.27965261,0.00020913,2]
[327842492,1716547360445,-3000.0,0.0003,120]
[327842496,1716547625202,-195.72034739,0.00019946,2]
[327842497,1716547633109,-44.63022861,0.00019946,2]
[327842498,1716547633133,-2135.974378,0.00020043,2]
[327842500,1716547749136,-10272.7648367,0.00020043,2]
[327842501,1716547749160,-164.28156595,0.00020812,2]
[327842502,1716547749184,-154.98450155,0.00020912,2]
[327842503,1716547749209,-320.01286512,0.00020912,2]
[327842504,1716547749231,-550.85396294,0.00020912,2]
[327842505,1716547749253,-585.3334164,0.00020912,2]
[327842506,1716547749275,-155.0,0.00020912,2]
[327842507,1716547749296,-155.08326852,0.00020912,2]
[327842508,1716547749318,-367.0074481,0.00020913,2]
[327842509,1716547749339,-1870.52133809,0.00020913,2]
[327842510,1716547749365,-1527.30191266,0.00021045,2]
[327842511,1716547749387,-699.579346,0.00021045,2]
[327842512,1716547749408,-166.666666,0.00021918,2]
[327842519,1716547813557,657.03917588,0.00020913,2]
[327842588,1716547833892,-0.9631464,0.00022431,2]
[327842590,1716547833903,-165.7035196,0.00022431,2]
[327842592,1716547833913,-166.666666,0.00022944,2]
[327842594,1716547833922,-155.39175254,0.00023,2]
[327842596,1716547833931,-42.91917655,0.00023456,2]
[327842693,1716547838883,-123.74748945,0.00023456,2]
[327842695,1716547838894,-166.666666,0.00023969,2]
[327842697,1716547838903,-1059.54862985,0.00024,3]
[327842733,1716547839255,-2263.99752876,0.00024,3]
[327842736,1716547839267,-5291.99326255,0.00024,3]
[327842737,1716547839277,-600.0,0.00024,2]
[327842740,1716547839287,-604.07457083,0.0002425,2]
[327842742,1716547839297,-151.0,0.00024304,5]
[327842744,1716547839308,-151.0,0.00024367,5]
[327842746,1716547839317,-161.114488,0.00024384,2]
[327842748,1716547839326,-309.905107,0.00024384,2]
[327842750,1716547839335,-666.56055762,0.0002441,2]
[327842752,1716547839345,-417.48839794,0.00024413,2]
[327842754,1716547839354,-4225.76789331,0.00024442,2]
[327842755,1716547839364,-166.666666,0.00024482,2]
[327842758,1716547839374,-189.69416459,0.00024554,2]
[327842759,1716547839383,-279.63876136,0.00024556,2]
[327842761,1716547839393,-424.36500736,0.00024557,2]
[327842763,1716547839402,-18842.08118746,0.00024557,3]
[327842766,1716547839415,-189.69416458,0.00024557,2]
[327842768,1716547839424,-201.22,0.00024641,3]
[327842770,1716547839434,-500.0,0.0002465,2]
[327842772,1716547839443,-511.61391611,0.0002465,2]
[327842774,1716547839453,-500.0,0.0002465,2]
[327842775,1716547839463,-444.59786417,0.0002465,2]
[327842777,1716547839472,-268.26620121,0.0002465,2]
[327842778,1716547839482,-500.0,0.0002465,2]
[327842779,1716547839492,-500.0,0.0002465,2]
[327842780,1716547839502,-500.0,0.0002465,2]
[327842781,1716547839512,-302.10876799,0.0002465,2]
[327842782,1716547839525,-500.0,0.0002465,2]
[327842783,1716547839535,-500.0,0.0002465,2]
[327842784,1716547839545,-500.0,0.0002465,2]
[327842785,1716547839555,-500.0,0.0002465,2]
[327842786,1716547839565,-410.35912557,0.0002465,2]
[327842787,1716547839575,-500.0,0.0002465,2]
[327842788,1716547839585,-500.0,0.0002465,2]
[327842789,1716547839595,-500.0,0.0002465,2]
[327842790,1716547839604,-500.0,0.0002465,2]
[327842792,1716547839614,-500.0,0.0002465,2]
[327842794,1716547839623,-500.0,0.0002465,2]
[327842795,1716547839633,-500.0,0.0002465,2]
[327842796,1716547839643,-492.80443721,0.0002465,2]
[327842797,1716547839652,-500.0,0.0002465,2]
[327842798,1716547839661,-500.0,0.0002465,2]
[327842799,1716547839671,-500.0,0.0002465,2]
[327842800,1716547839680,-500.0,0.0002465,2]
[327842801,1716547839690,-500.0,0.0002465,2]
[327842802,1716547839700,-500.0,0.0002465,2]
[327842803,1716547839710,-500.0,0.0002465,2]
[327842804,1716547839720,-500.0,0.0002465,2]
[327842805,1716547839730,-500.0,0.0002465,2]
[327842806,1716547839740,-500.0,0.0002465,2]
[327842807,1716547839749,-500.0,0.0002465,2]
[327842808,1716547839759,-500.0,0.0002465,2]
[327842809,1716547839772,-500.0,0.0002465,2]
[327842810,1716547839782,-500.0,0.0002465,2]
[327842811,1716547839792,-500.0,0.0002465,2]
[327842812,1716547839803,-500.0,0.0002465,2]
[327842813,1716547839813,-500.0,0.0002465,2]
[327842814,1716547839823,-500.0,0.0002465,2]
[327842815,1716547839834,-500.0,0.0002465,2]
[327842816,1716547839844,-500.0,0.0002465,2]
[327842817,1716547839853,-156.80909043,0.0002465,2]
[327842818,1716547839863,-500.0,0.0002465,2]
[327842819,1716547839873,-500.0,0.0002465,2]
[327842820,1716547839882,-500.0,0.0002465,2]
[327842821,1716547839892,-500.0,0.0002465,2]
[327842822,1716547839902,-500.0,0.0002465,2]
[327842823,1716547839913,-500.0,0.0002465,2]
[327842824,1716547839923,-500.0,0.0002465,2]
[327842825,1716547839933,-500.0,0.0002465,2]
[327842826,1716547839944,-151.0,0.00024651,2]
[327842827,1716547839955,-151.0,0.00024651,2]
[327842828,1716547839964,-151.0,0.00024652,2]
[327842829,1716547839974,-151.0,0.00024652,2]
[327842830,1716547839984,-151.0,0.00024652,2]
[327842831,1716547839993,-151.0,0.00024652,2]
[327842832,1716547840003,-981.35041478,0.00024656,11]
[327842833,1716547840013,-7383.04422062,0.00024656,2]
[327842834,1716547840025,-151.0,0.00024656,2]
[327842835,1716547840035,-151.0,0.00024656,2]
[327842836,1716547840044,-151.0,0.00024656,2]
[327842837,1716547840054,-151.0,0.00024656,2]
[327842838,1716547840064,-151.0,0.00024656,2]
[327842839,1716547840074,-365.136211,0.00024656,2]
[327842840,1716547840083,-365.136211,0.00024656,2]
[327842842,1716547840092,-5000.0,0.00024656,5]
[327842843,1716547840102,-5000.0,0.00024656,5]
[327842844,1716547840112,-5000.0,0.00024656,5]
[327842845,1716547840122,-5000.0,0.00024656,5]
[327842846,1716547840134,-5000.0,0.00024656,5]
[327842847,1716547840144,-5000.0,0.00024656,5]
[327842848,1716547840154,-5000.0,0.00024656,5]
[327842849,1716547840163,-5000.0,0.00024656,5]
[327842850,1716547840175,-5000.0,0.00024656,5]
[327842851,1716547840186,-5000.0,0.00024656,5]
[327842852,1716547840203,-2524.29042869,0.00024656,5]
[327842853,1716547840212,-151.0,0.00024656,2]
[327842854,1716547840222,-151.0,0.00024656,2]
[327842855,1716547840232,-191.85799,0.00024656,2]
[327842856,1716547840242,-152.290358,0.00024656,2]
[327842857,1716547840252,-500.0,0.00024656,3]
[327842858,1716547840261,-500.0,0.00024656,3]
[327842859,1716547840272,-500.0,0.00024656,3]
[327842860,1716547840281,-500.0,0.00024656,3]
[327842861,1716547840291,-506.56,0.00024656,3]
[327842862,1716547840301,-151.0,0.00024656,2]
[327842863,1716547840311,-151.0,0.00024656,2]
[327842864,1716547840321,-151.0,0.00024656,2]
[327842865,1716547840333,-151.0,0.00024656,2]
[327842866,1716547840343,-2241.30233007,0.00024657,11]
[327842867,1716547840353,-500.0,0.00024657,2]
[327842868,1716547840362,-529.93,0.00024657,2]
[327842869,1716547840372,-500.0,0.00024657,2]
[327842870,1716547840381,-500.0,0.00024657,2]
[327842871,1716547840391,-500.0,0.00024657,2]
[327842872,1716547840400,-500.0,0.00024657,2]
[327842873,1716547840410,-500.0,0.00024657,2]
[327842874,1716547840419,-500.0,0.00024657,2]
[327842875,1716547840429,-500.0,0.00024657,2]
[327842876,1716547840438,-500.0,0.00024657,2]